fUSD/lending_fUSD_20240811
["ID","MTS","AMOUNT","RATE_DAILY","PERIOD"]
[334631123,1723365038189,-404.09,0.00010959,2]
[334631124,1723365038201,-22330.9853011,0.00011,2]
[334631125,1723365038211,-146209.97101457,0.00011,2]
[334631126,1723365038373,-667.57069182,0.00011,2]
[334631127,1723365038384,-5224.9197,0.00011,2]
[334631128,1723365038424,-3633.17935124,0.00011,2]
[334631129,1723365038435,-500.0,0.00011,2]
[334631221,1723365040107,-435.23695744,0.00011,2]
[334631222,1723365040135,-9001.43961496,0.00011,2]
[334631223,1723365040166,-270.59,0.00011,2]
[334631224,1723365040179,-890.90712876,0.00011,2]
[334631225,1723365040190,-354.16960267,0.00011,2]
[334631226,1723365040203,-250.13277065,0.00011,2]
[334631227,1723365040226,-263.9482,0.00011,2]
[334631228,1723365040237,-383.0020099,0.00011,2]
[334631229,1723365040248,-587.45930524,0.00011,2]
[334631230,1723365040260,-611.68515029,0.00011,2]
[334631231,1723365040348,-46652.24691874,0.00011,2]
[334631232,1723365040360,-7965.66577031,0.00011,2]
[334631233,1723365040371,-803.05117959,0.00011,2]
[334631234,1723365040408,-457661.34945896,0.00011,2]
[334631235,1723365040472,-3037.997,0.00011,2]
[334631236,1723365040488,-1358.27907488,0.00011,2]
[334631237,1723365040499,-338.805,0.00011,2]
[334631259,1723365043114,-336.75,0.00010959,2]
[334631260,1723365043126,-9839.41600853,0.00011,2]
[334631261,1723365043141,-938.72103182,0.00011,2]
[334631263,1723365043152,-880.8,0.00011,2]
[334631266,1723365043298,-21106.18930578,0.00011,2]
[334631267,1723365043309,-98913.31434675,0.00011,2]
[334631268,1723365043330,-11209.15747998,0.00011,2]
[334631269,1723365043341,-3484.0,0.00011,2]
[334631270,1723365043352,-73351.89172967,0.00011,2]
[334631273,1723365044091,-20481.6,0.00011,2]
[334631274,1723365044104,-942.66174752,0.00011,2]
[334631275,1723365044117,-96026.32795077,0.00011,2]
[334631276,1723365044156,-446.84420291,0.00011,2]
[334631277,1723365044170,-407.56503049,0.00011,2]
[334631278,1723365044184,-10000.0,0.00011,2]
[334631279,1723365046191,-128645.95580588,0.00011,2]
[334631280,1723365046204,-593.39,0.00011,2]
[334631281,1723365046216,-383.957892,0.00011,2]
[334631282,1723365046232,-1378.80283563,0.00011,2]
[334631283,1723365046245,-267.22567297,0.00011,2]
[334631284,1723365046259,-606.13570382,0.00011,2]
[334631285,1723365046315,-1588.49915477,0.00011,2]
[334631286,1723365046328,-2947.54898619,0.00011,2]
[334631287,1723365046373,-5744.72214757,0.00011,2]
[334631288,1723365046385,-837.1615839,0.00011,2]
[334631289,1723365046397,-263.9734208,0.00011,2]
[334631290,1723365046434,-147877.96201166,0.00011,2]
[334631291,1723365046447,-639955.22785592,0.00011,2]
[334631292,1723365046460,-873.80203649,0.00011,2]
[334631293,1723365046495,-6428.14664,0.00011,2]
[334631294,1723365046506,-3063.31053378,0.00011,2]
[334631295,1723365046519,-372.27,0.00011,2]
[334631325,1723365211286,150.0,0.00024319,120]
[334631334,1723365391320,150.0,0.00023856,120]
[334631336,1723365425611,-600.0,9.74e-05,2]
[334631337,1723365425634,-668.44,9.763e-05,2]
[334631338,1723365425657,-195.83,9.777e-05,2]
[334631339,1723365425679,-336.02,9.788e-05,2]
[334631340,1723365425701,-582.97261733,9.8e-05,2]
[334631341,1723365425725,-400.0,9.807e-05,2]
[334631342,1723365462196,227.74801183,9.807e-05,2]
[334631343,1723365464567,250.0,9.807e-05,2]
[334631345,1723365559269,227.74801183,9.807e-05,2]
[334631346,1723365574264,227.74801183,9.807e-05,2]
[334631347,1723365575782,2240.15,9.814e-05,2]
[334631348,1723365668280,528.44,9.813e-05,2]
[334631351,1723365677650,23900.0,9.813e-05,2]
[334631352,1723365679269,227.74801183,9.814e-05,2]
[334631373,1723365713550,732.56,8.219e-05,2]
[334631375,1723365779302,227.74801183,8.219e-05,2]
[334631376,1723365862277,227.74801183,8.219e-05,2]
[334631377,1723365945321,1000.0,9.836e-05,2]
[334631378,1723365967291,227.74801183,8.219e-05,2]
[334631379,1723366011739,174.11,9.818e-05,2]
[334631389,1723366060192,250.0,9.732e-05,2]
[334631390,1723366108295,227.74801183,9.732e-05,2]
[334631396,1723366159668,169.49328803,8.219e-05,2]
[334631397,1723366159690,150.0,8.219e-05,2]
[334631398,1723366159712,150.0,8.219e-05,2]
[334631399,1723366159733,154.39822617,8.219e-05,2]
[334631400,1723366159757,72.0384858,8.219e-05,2]
[334631418,1723366232447,-227.74801183,9.732e-05,2]
[334631419,1723366232456,-133.61753585,9.888e-05,2]
[334631420,1723366232472,-16.38246415,9.888e-05,2]
[334631421,1723366232481,-1351.35753585,9.918e-05,2]
[334631422,1723366232493,-5260.93246415,9.918e-05,2]
[334631423,1723366232502,-300.0,0.000102,3]
[334631424,1723366232511,-600.0,0.000103,3]
[334631425,1723366232521,-150.0,0.00010366,2]
[334631426,1723366232530,-300.0,0.00010366,2]
[334631427,1723366232540,-499.99,0.00010367,2]
[334631428,1723366232549,-776.62913293,0.00010367,2]
[334631429,1723366232561,-5439.96,0.00010367,2]
[334631430,1723366232573,-1319.0268565,0.00010367,2]
[334631431,1723366232585,-5687.19154647,0.00010367,2]
[334631432,1723366232596,-619.65012665,0.00010367,2]
[334631433,1723366232619,-4469.33233745,0.00010367,2]
[334631434,1723366232628,-189.94,0.000104,2]
[334631436,1723366232639,-900.0,0.000104,3]
[334631438,1723366232647,-695.93,0.00010468,2]
[334631440,1723366232657,-1200.0,0.000105,3]
[334631442,1723366232666,-1500.0,0.000106,3]
[334631444,1723366232675,-300.0,0.000107,3]
[334631446,1723366232685,-2174.58991884,0.000108,2]
[334631448,1723366232700,-1000.37172,0.000108,2]
[334631450,1723366232711,-3094.2,0.000108,2]
[334631452,1723366232722,-939.2,0.000108,2]
[334631454,1723366232733,-5814.60236116,0.000108,2]
[334631456,1723366232743,-300.0,0.000108,3]
[334631459,1723366232752,-321.36054275,0.00010881,2]
[334631462,1723366232764,-775.99476748,0.00010899,2]
[334631465,1723366232774,-775.99476739,0.00010899,2]
[334631468,1723366232783,-775.99476739,0.00010899,2]
[334631470,1723366232792,-775.99476739,0.00010899,2]
[334631472,1723366232803,-775.99476739,0.00010899,2]
[334631474,1723366232813,-722.97469202,0.00010899,2]
[334631478,1723366232825,-53.02007537,0.00010899,2]
[334631480,1723366232834,-775.99476739,0.00010899,2]
[334631483,1723366232845,-775.99476739,0.00010899,2]
[334631486,1723366232855,-775.99476739,0.00010899,2]
[334631489,1723366232866,-300.0,0.000109,3]
[334631492,1723366232875,-157.70955616,0.000109,2]
[334631494,1723366232884,-157.70955616,0.000109,2]
[334631497,1723366232894,-157.70955616,0.000109,2]
[334631500,1723366232903,-157.70955616,0.000109,2]
[334631503,1723366232913,-157.70955616,0.000109,2]
[334631506,1723366232923,-157.70955616,0.000109,2]
[334631509,1723366232932,-157.70955616,0.000109,2]
[334631512,1723366232943,-269.54999516,0.000109,2]
[334631516,1723366232954,-506.44477223,0.000109,2]
[334631518,1723366232964,-179.98,0.00010959,2]
[334631520,1723366232974,-2780.54,0.00010959,2]
[334631522,1723366232984,-250.0,0.00010959,2]
[334631523,1723366232993,-916.05001162,0.00010959,2]
[334631526,1723366233004,-1083.94998838,0.00010959,2]
[334631528,1723366233014,-744.42,0.00010966,2]
[334631529,1723366233023,-128.00594516,0.00010969,2]
[334631532,1723366233035,-616.41405484,0.00010969,2]
[334631534,1723366233044,-744.42,0.00010972,2]
[334631535,1723366233053,-744.42,0.00010975,2]
[334631537,1723366233063,-744.42,0.00010978,2]
[334631539,1723366233072,-151.97621015,0.00010979,2]
[334631541,1723366233082,-8768.91401742,0.0001098,2]
[334631559,1723366233251,-781.99865427,0.0001098,2]
[334631567,1723366238271,-396.51518335,0.00010959,2]
[334631568,1723366238283,-33.31481665,0.00010959,2]
[334631569,1723366238292,-269.93917835,0.0001098,2]
[334631570,1723366238303,-2111.13867946,0.0001098,2]
[334631571,1723366238335,-17003.49677262,0.0001098,2]
[334631572,1723366238347,-7488.22927457,0.0001098,2]
[334631573,1723366238358,-20033.17723762,0.0001098,2]
[334631574,1723366238369,-28138.33616414,0.0001098,2]
[334631575,1723366238380,-1753.93676992,0.0001098,2]
[334631576,1723366238392,-3335.0225768,0.0001098,2]
[334631577,1723366238447,-3998.62676154,0.0001098,2]
[334631578,1723366238459,-1387.11264159,0.0001098,2]
[334631579,1723366238470,-795.2682055,0.0001098,2]
[334631580,1723366238481,-1007.38297438,0.0001098,2]
[334631581,1723366238505,-675.54813812,0.0001098,2]
[334631582,1723366238568,-343.85707999,0.0001098,2]
[334631583,1723366238579,-47778.98342092,0.0001098,2]
[334631584,1723366238590,-22554.36691533,0.0001098,2]
[334631585,1723366238601,-9257.565367,0.0001098,2]
[334631586,1723366238625,-3105.15703493,0.0001098,2]
[334631589,1723366239435,150.0,8.219e-05,2]
[334631590,1723366239458,77.74801183,8.219e-05,2]
[334631591,1723366240278,-6798.92181857,0.0001098,2]
[334631592,1723366242007,72.25198817,8.219e-05,2]
[334631593,1723366242028,150.0,8.219e-05,2]
[334631594,1723366242049,69.10390084,8.219e-05,2]
[334631595,1723366242295,-1323.72601942,0.0001098,2]
[334631596,1723366242353,-5307.9,0.0001098,2]
[334631597,1723366242364,-711.24,0.0001098,2]
[334631598,1723366242376,-907.65657637,0.0001098,2]
[334631599,1723366242411,-173177.99166788,0.0001098,2]
[334631600,1723366242423,-1482.8162759,0.0001098,2]
[334631601,1723366242435,-3040.21925122,0.0001098,2]
[334631602,1723366242447,-613.91296,0.0001098,2]
[334631603,1723366242459,-2360.64729945,0.0001098,2]
[334631604,1723366242475,-4925.39450496,0.0001098,2]
[334631622,1723366243481,-369.29730818,0.0001098,2]
[334631623,1723366244295,-306.90762154,0.0001098,2]
[334631624,1723366244306,-1605.35180376,0.0001098,2]
[334631625,1723366244319,-1011.21766666,0.0001098,2]
[334631626,1723366244330,-39977.64180118,0.0001098,2]
[334631627,1723366244342,-17720.0,0.0001098,2]
[334631628,1723366244353,-3878.69,0.0001098,2]
[334631630,1723366246419,-475.71,0.00010959,2]
[334631631,1723366246428,-1833.07523856,0.0001098,2]
[334631632,1723366246567,-2024.18564045,0.0001098,2]
[334631633,1723366246643,-2660.46376001,0.0001098,2]
[334631655,1723366352215,400.0,9.636e-05,2]
[334631656,1723366400602,150.0,9.636e-05,2]
[334631657,1723366400624,9.18811766,9.636e-05,2]
[334631658,1723366484117,150.0,9.601e-05,2]
[334631659,1723366484137,25.19,9.601e-05,2]
[334631661,1723366590838,150.0,0.00024096,120]
[334631662,1723366620988,150.0,9.622e-05,2]
[334631663,1723366621010,100.0,9.622e-05,2]
[334631664,1723366650868,150.0,0.00024319,120]
[334631665,1723366670236,372.57,9.596e-05,2]
[334631666,1723366699405,150.0,8.219e-05,2]
[334631667,1723366699426,150.0,8.219e-05,2]
[334631668,1723366699447,150.0,8.219e-05,2]
[334631669,1723366699468,150.0,8.219e-05,2]
[334631670,1723366699489,104.69,8.219e-05,2]
[334631672,1723366770903,150.0,8.219e-05,2]
[334631673,1723366770923,150.0,8.219e-05,2]
[334631674,1723366770944,150.0,8.219e-05,2]
[334631675,1723366770965,150.0,8.219e-05,2]
[334631676,1723366785405,150.0,9.572e-05,2]
[334631677,1723366785427,150.0,9.572e-05,2]
[334631678,1723366785448,150.0,9.572e-05,2]
[334631679,1723366785470,150.0,9.572e-05,2]
[334631680,1723366785492,150.0,9.572e-05,2]
[334631681,1723366785513,150.0,9.572e-05,2]
[334631682,1723366785535,100.0,9.572e-05,2]
[334631683,1723366814015,150.0,9.605e-05,2]
[334631684,1723366814037,150.0,9.605e-05,2]
[334631685,1723366814059,92.31,9.605e-05,2]
[334631688,1723366824349,227.74801183,8.219e-05,2]
[334631692,1723366844953,150.0,9.605e-05,2]
[334631693,1723366844974,150.0,9.605e-05,2]
[334631694,1723366844996,95.92,9.605e-05,2]
[334631700,1723366882411,1050.0,9.572e-05,2]
[334631701,1723366887982,150.0,9.579e-05,2]
[334631702,1723366888005,50.0,9.579e-05,2]
[334631727,1723366945353,150.0,9.605e-05,2]
[334631728,1723366945374,77.74801183,9.605e-05,2]
[334631729,1723366951939,150.0,9.579e-05,2]
[334631730,1723366951962,50.0,9.579e-05,2]
[334631735,1723367011264,150.0,0.00024128,120]
[334631736,1723367018998,150.0,9.574e-05,2]
[334631737,1723367019018,150.0,9.574e-05,2]
[334631738,1723367019041,150.0,9.574e-05,2]
[334631739,1723367019065,150.0,9.574e-05,2]
[334631740,1723367019087,150.0,9.574e-05,2]
[334631741,1723367019107,150.0,9.574e-05,2]
[334631742,1723367019130,150.0,9.574e-05,2]
[334631743,1723367019150,150.0,9.574e-05,2]
[334631744,1723367019170,35.62,9.574e-05,2]
[334631747,1723367050403,150.0,9.574e-05,2]
[334631748,1723367050423,150.0,9.574e-05,2]
[334631749,1723367050444,173.1217435,9.574e-05,2]
[334631750,1723367050464,150.0,9.574e-05,2]
[334631751,1723367050484,150.0,9.574e-05,2]
[334631752,1723367050507,276.8782565,9.574e-05,2]
[334631757,1723367097410,150.0,9.574e-05,2]
[334631758,1723367097433,22.37277314,9.574e-05,2]
[334631759,1723367142810,150.0,9.563e-05,2]
[334631760,1723367142832,21.71,9.563e-05,2]
[334631761,1723367163316,150.0,8.219e-05,2]
[334631762,1723367163340,150.0,8.219e-05,2]
[334631763,1723367163361,150.0,8.219e-05,2]
[334631764,1723367163383,150.0,8.219e-05,2]
[334631765,1723367163405,150.0,8.219e-05,2]
[334631766,1723367163426,82.22,8.219e-05,2]
[334631767,1723367166737,250.0,9.561e-05,2]
[334631770,1723367222765,150.0,9.575e-05,2]
[334631771,1723367222787,150.0,9.575e-05,2]
[334631772,1723367222810,150.0,9.575e-05,2]
[334631773,1723367222835,150.0,9.575e-05,2]
[334631774,1723367222858,150.0,9.575e-05,2]
[334631775,1723367222883,150.0,9.575e-05,2]
[334631776,1723367222908,150.0,9.575e-05,2]
[334631777,1723367222932,150.0,9.575e-05,2]
[334631778,1723367222958,150.0,9.575e-05,2]
[334631779,1723367223165,150.0,9.575e-05,2]
[334631780,1723367223188,150.0,9.575e-05,2]
[334631781,1723367223213,150.0,9.575e-05,2]
[334631782,1723367223236,150.0,9.575e-05,2]
[334631783,1723367223259,21950.0,9.575e-05,2]
[334631794,1723367249220,290.93231395,9.561e-05,2]
[334631795,1723367249330,1200.0,9.561e-05,2]
[334631796,1723367250838,150.0,0.00024854,120]
[334631797,1723367252817,173.69722686,9.58e-05,2]
[334631798,1723367252844,65.51277314,9.58e-05,2]
[334631799,1723367253036,239.21,9.583e-05,2]
[334631800,1723367253251,239.21,9.585e-05,2]
[334631801,1723367253803,239.21,9.588e-05,2]
[334631802,1723367254041,239.21,9.59e-05,2]
[334631803,1723367254260,239.21,9.593e-05,2]
[334631804,1723367254469,239.21,9.595e-05,2]
[334631805,1723367254670,239.21,9.598e-05,2]
[334631806,1723367254878,239.21,9.601e-05,2]
[334631807,1723367255085,239.21,9.603e-05,2]
[334631808,1723367255317,239.21,9.606e-05,2]
[334631809,1723367255545,239.21,9.608e-05,2]
[334631810,1723367255747,239.21,9.611e-05,2]
[334631811,1723367255941,239.21,9.613e-05,2]
[334631812,1723367256162,239.21,9.616e-05,2]
[334631813,1723367256357,239.21,9.618e-05,2]
[334631814,1723367256565,239.21,9.621e-05,2]
[334631815,1723367256958,239.21,9.623e-05,2]
[334631816,1723367257178,239.21,9.626e-05,2]
[334631817,1723367257392,239.21,9.628e-05,2]
[334631818,1723367261922,200.0,9.58e-05,2]
[334631819,1723367283941,262.24659532,9.575e-05,2]
[334631820,1723367307376,227.74801183,9.575e-05,2]
[334631821,1723367307438,425.83516653,9.575e-05,2]
[334631826,1723367341302,2277.11,9.629e-05,2]
[334631828,1723367359047,150.0,7.703e-05,2]
[334631856,1723367399242,11905.5277,9.583e-05,2]
[334631857,1723367431572,-855.0,9.683e-05,2]
[334631858,1723367431581,-300.0,9.683e-05,2]
[334631859,1723367431591,-131.40886734,9.684e-05,2]
[334631860,1723367431602,-25627.67113266,9.684e-05,2]
[334631861,1723367431612,-150.0,9.787e-05,2]
[334631862,1723367431621,-13435.44210128,9.787e-05,2]
[334631863,1723367431630,-610.72,0.00010393,2]
[334631864,1723367431639,-610.72,0.00010396,2]
[334631865,1723367431649,-610.72,0.00010398,2]
[334631866,1723367431658,-610.72,0.00010401,2]
[334631867,1723367431667,-610.72,0.00010404,2]
[334631868,1723367431676,-161.18,0.00010404,2]
[334631869,1723367431685,-499.99,0.00010404,2]
[334631871,1723367431695,-5163.38,0.00010404,2]
[334631872,1723367431704,-610.72,0.00010407,2]
[334631873,1723367431713,-999.99,0.00010407,2]
[334631874,1723367431723,-286.0,0.00010407,2]
[334631875,1723367431732,-5442.18,0.00010407,2]
[334631876,1723367431741,-610.72,0.00010409,2]
[334631878,1723367431751,-411.37,0.00010409,2]
[334631880,1723367431760,-610.72,0.00010412,2]
[334631882,1723367431770,-4648.37,0.00010412,2]
[334631884,1723367431780,-150.99,0.00010412,2]
[334631886,1723367431789,-610.72,0.00010415,2]
[334631887,1723367431805,-610.72,0.00010418,2]
[334631890,1723367431814,-610.72,0.0001042,2]
[334631891,1723367431823,-610.72,0.00010423,2]
[334631893,1723367431833,-610.72,0.00010426,2]
[334631895,1723367431843,-610.72,0.00010428,2]
[334631897,1723367431852,-610.72,0.00010431,2]
[334631899,1723367431861,-610.72,0.00010434,2]
[334631901,1723367431870,-610.72,0.00010437,2]
[334631903,1723367431880,-610.72,0.00010439,2]
[334631905,1723367431889,-610.72,0.00010442,2]
[334631907,1723367431898,-610.72,0.00010445,2]
[334631909,1723367431908,-832.22,0.00010455,2]
[334631911,1723367431918,-420.0,0.00010651,2]
[334631913,1723367431927,-1000.0,0.00010768,2]
[334631915,1723367431936,-200.0,0.00010778,2]
[334631917,1723367431946,-400.0,0.00010841,2]
[334631919,1723367431957,-3294.168,0.00010877,2]
[334631921,1723367431967,-43361.0,0.0001089,2]
[334631923,1723367431976,-2006.69482638,0.00010899,2]
[334631925,1723367431987,-2006.6948263,0.00010899,2]
[334631927,1723367431996,-2006.6948263,0.00010899,2]
[334631929,1723367432006,-2006.6948263,0.00010899,2]
[334631931,1723367432015,-2006.6948263,0.00010899,2]
[334631932,1723367432024,-2006.6948263,0.00010899,2]
[334631934,1723367432033,-2006.6948263,0.00010899,2]
[334631936,1723367432043,-2006.6948263,0.00010899,2]
[334631938,1723367432052,-2006.6948263,0.00010899,2]
[334631940,1723367432061,-2006.6948263,0.000109,2]
[334631942,1723367432071,-2108.69320278,0.000109,2]
[334631944,1723367432081,-2108.69320276,0.000109,2]
[334631946,1723367432090,-2108.69320276,0.000109,2]
[334631948,1723367432100,-2108.69320276,0.000109,2]
[334631950,1723367432109,-2108.69320276,0.000109,2]
[334631952,1723367432118,-2108.69320276,0.000109,2]
[334631954,1723367432127,-2108.69320276,0.000109,2]
[334631956,1723367432137,-2108.69320276,0.000109,2]
[334631958,1723367432146,-321.87594575,0.000109,2]
[334631960,1723367432155,-698.08945788,0.000109,2]
[334631962,1723367432165,-402.70663,0.0001095,2]
[334631964,1723367432174,-640.95,0.00010959,5]
[334631965,1723367432184,-324.79,0.00010959,2]
[334631967,1723367432198,-270.66,0.00010959,2]
[334631969,1723367432208,-225.55,0.00010959,2]
[334631971,1723367432218,-187.95,0.00010959,2]
[334631973,1723367432227,-187.95,0.00010959,2]
[334631975,1723367432238,-751.85,0.00010959,2]
[334631977,1723367432247,-250.0,0.00010959,2]
[334631979,1723367432258,-11199.89,0.00010959,2]
[334631981,1723367432270,-185.52912239,0.00010979,2]
[334631983,1723367432280,-171606.57138856,0.0001098,2]
[334631985,1723367432289,-744.42,0.00010981,2]
[334631987,1723367432303,-744.42,0.00010984,2]
[334631989,1723367432312,-744.42,0.00010986,2]
[334631991,1723367432322,-744.42,0.00010989,2]
[334631993,1723367432331,-402.70663,0.0001099,2]
[334631995,1723367432340,-744.42,0.00010992,2]
[334631997,1723367432350,-744.42,0.00010995,2]
[334631999,1723367432359,-167.86996824,0.00010997,2]
[334632001,1723367432368,-744.42,0.00010998,2]
[334632003,1723367432377,-292157.9762168,0.00011,2]
[334632005,1723367432387,-1259620.1431199,0.00011,2]
[334632007,1723367432399,-24729.67258183,0.00011,2]
[334632010,1723367432410,-214185.02711281,0.00011,2]
[334632012,1723367432421,-224440.0,0.00011,2]
[334632169,1723367437607,-29174.77924801,0.00011,2]
[334632535,1723367442519,-500.0,0.00010979,2]
[334632536,1723367442530,-500.0,0.00010979,2]
[334632537,1723367442539,-500.0,0.00010979,2]
[334632538,1723367442548,-206.00935736,0.00010979,2]
[334632539,1723367442564,-500.0,0.00010979,2]
[334632540,1723367442574,-500.0,0.00010979,2]
[334632541,1723367442583,-500.0,0.00010979,2]
[334632542,1723367442592,-500.0,0.00010979,2]
[334632543,1723367442602,-500.0,0.00010979,2]
[334632544,1723367442611,-84407.54052973,0.00011,2]
[334632545,1723367442640,-9940.53179291,0.00011,2]
[334632547,1723367442687,-232950.0,0.00011,2]
[334632549,1723367442698,-405390.0,0.00011,2]
[334632554,1723367442744,-2296.2017547,0.00011,2]
[334632837,1723367445779,-6385.86861335,0.00011,2]
[334634324,1723367627929,821.61,8.219e-05,2]
[334634328,1723367720241,-250.0,9.866e-05,2]
[334634329,1723367720264,-894.65,9.903e-05,2]
[334634330,1723367720288,-558.42,9.909e-05,2]
[334634331,1723367720315,-174.11,9.909e-05,2]
[334634332,1723367720338,-345.50118713,9.909e-05,2]
[334634333,1723367720363,-821.61,0.0001047,2]
[334634334,1723367720390,-150.0,0.00010705,2]
[334634335,1723367720416,-300.0,0.00010711,2]
[334634336,1723367720442,-150.0,0.00010714,2]
[334634337,1723367720469,-150.0,0.00010718,2]
[334634338,1723367720495,-150.0,0.00010722,2]
[334634339,1723367720521,-150.0,0.00010724,2]
[334634340,1723367720547,-150.0,0.00010725,2]
[334634341,1723367720572,-150.0,0.00010727,2]
[334634342,1723367720595,-150.99,0.00010727,2]
[334634343,1723367720621,-150.0,0.00010736,2]
[334634344,1723367720647,-150.0,0.00010739,2]
[334634345,1723367720673,-150.0,0.00010752,2]
[334634346,1723367720696,-300.0,0.00010763,2]
[334634347,1723367720722,-150.0,0.00010764,2]
[334634348,1723367720748,-150.0,0.00010764,2]
[334634349,1723367742329,-150.0,0.00010767,2]
[334634350,1723367742353,-150.0,0.00010774,2]
[334634351,1723367742379,-150.0,0.00010785,2]
[334634352,1723367742402,-150.0,0.00010787,2]
[334634353,1723367742428,-150.0,0.000108,2]
[334634354,1723367742454,-150.0,0.000108,2]
[334634355,1723367742478,-1898.89321287,0.000108,2]
[334634358,1723368121171,739.44,8.219e-05,2]
[334634379,1723368210758,150.0,0.00024283,120]
[334634380,1723368237487,1111.44827464,8.219e-05,2]
[334634383,1723368336401,5839.85,9.5e-05,2]
[334634414,1723368582184,150.0,9.629e-05,2]
[334634415,1723368582205,150.0,9.629e-05,2]
[334634416,1723368582225,147.32,9.629e-05,2]
[334634417,1723368588784,702.46,8.219e-05,2]
[334634421,1723368632143,-801.98,9.719e-05,2]
[334634422,1723368632152,-746.99,9.783e-05,2]
[334634424,1723368632161,-939.35184878,9.783e-05,2]
[334634426,1723368632172,-3230.68631558,9.783e-05,2]
[334634428,1723368632224,-96.12405782,9.783e-05,2]
[334634429,1723368632233,-165.96,9.867e-05,2]
[334634430,1723368632243,-177.63234154,9.877e-05,2]
[334634431,1723368632254,-72.36765846,9.877e-05,2]
[334634432,1723368632263,-165.96,9.884e-05,2]
[334634433,1723368632272,-165.96,9.9e-05,2]
[334634434,1723368632282,-23900.0,9.905e-05,2]
[334634435,1723368632290,-165.96,9.917e-05,2]
[334634436,1723368632299,-240.0,9.931e-05,2]
[334634437,1723368632309,-1000.0,9.933e-05,2]
[334634438,1723368632318,-150.0,9.999e-05,2]
[334634439,1723368632327,-275.1054945,0.0001,2]
[334634440,1723368632336,-35108.64684703,0.0001,2]
[334634441,1723368632347,-292.52138008,0.0001,2]
[334634442,1723368632358,-3422.04110642,0.0001,2]
[334634443,1723368632369,-401.44091038,0.0001,2]
[334634444,1723368632380,-1601.38575,0.0001,2]
[334634445,1723368632391,-4866.61354802,0.0001,2]
[334634446,1723368632407,-299.6900001,0.0001,2]
[334634447,1723368632418,-1358.29154305,0.0001,2]
[334634448,1723368632430,-432.000004,0.0001,2]
[334634449,1723368632450,-94144.88131052,0.0001,2]
[334634450,1723368632461,-702.46,0.00010456,2]
[334634451,1723368632472,-150.0,0.00010729,2]
[334634452,1723368632482,-150.0,0.00010744,2]
[334634453,1723368632491,-150.0,0.00010749,2]
[334634454,1723368632500,-150.0,0.00010751,2]
[334634455,1723368632510,-150.0,0.00010753,2]
[334634457,1723368632520,-150.0,0.00010754,2]
[334634459,1723368632529,-150.0,0.00010797,2]
[334634461,1723368632538,-499.99,0.00010801,2]
[334634463,1723368632548,-150.0,0.00010812,2]
[334634465,1723368632557,-150.0,0.00010833,2]
[334634467,1723368632567,-150.0,0.00010835,2]
[334634469,1723368632576,-150.0,0.00010837,2]
[334634471,1723368632585,-150.0,0.00010866,2]
[334634473,1723368632595,-150.0,0.00010871,2]
[334634475,1723368632608,-150.0,0.00010884,2]
[334634477,1723368632617,-150.0,0.00010887,2]
[334634479,1723368632626,-150.0,0.00010888,2]
[334634481,1723368632635,-321.87594569,0.00010889,2]
[334634483,1723368632645,-1843.68271,0.0001089,2]
[334634485,1723368632654,-150.0,0.00010899,2]
[334634486,1723368632664,-258306.28132499,0.000109,2]
[334634487,1723368632676,-979.62220265,0.000109,2]
[334634488,1723368632689,-5649.28327191,0.000109,2]
[334634489,1723368632700,-651.46588904,0.000109,2]
[334634490,1723368632713,-382.31751455,0.000109,2]